Cogmind - Beta 16.1 @@@ ROGUE MODE // 2026.03.03 @ 17:24:32 Player: GlasMayne Result: Destroyed by HX-579(R) with Subdweller Machine Gun Performance ------------- Evolutions (0) 0 Regions Visited (2) 400 Robots Destroyed (16) 80 Value Destroyed (442) 442 Prototype IDs (0) 0 Alien Tech Used (0) 0 Bonus (0) 0 TOTAL SCORE: 922 Bonus ------- None Cogmind --------- Core Integrity 0/250 Matter 300/300 Energy 200/200 System Corruption 0% Temperature Cool (0) Movement Treading (240) Ox1 Location -10/Subcaves Parts ------- > --- POWER (1) -------- Subdweller Power Source > --- PROPULSION (2) --- Light Treads Subdweller Monowheel > --- UTILITY (2) ------ Medium Storage Unit Medium Armor Plating > --- WEAPON (2) ------- Particle Cannon Particle Cannon > --- INVENTORY (10) --- Subdweller Power Source Large Storage Unit Subdweller Optics Signal Interpreter Improved Terrain Scanner Seismic Detector Improved Targeting Computer Scrap Shield Fragment (50) Peak State ------------ > --- POWER ------------ Subdweller Power Source > --- PROPULSION ------- Light Treads Subdweller Monowheel > --- UTILITY ---------- Medium Storage Unit Medium Armor Plating > --- WEAPON ----------- Particle Cannon Particle Cannon > --- INVENTORY -------- Subdweller Power Source Large Storage Unit Subdweller Optics Signal Interpreter Improved Terrain Scanner Seismic Detector Improved Targeting Computer Scrap Shield Fragment [Rating: 13] Favorites ----------- Power Ion Engine Engine Ion Engine Propulsion Light Treads Treads Light Treads Leg Aluminum Leg Wheel Subdweller Monowheel Flight Unit VTOL Module Utility Small Storage Unit Device Seismic Detector Storage Small Storage Unit Protection Medium Armor Plating Weapon Particle Cannon Energy Gun Medium Laser Energy Cannon Particle Cannon Build | -11 -10 -10 ------- Run | Yrd Mat Sub Slots Evolved . | . . . Power . | . . . Propulsion . | . . . Utility . | . . . Weapon . | . . . Parts Attached 24 | 6 13 5 Power 5 | 1 4 . Engine 5 | 1 4 . Core . | . . . Reactor . | . . . Propulsion 8 | 2 5 1 Treads 3 | 2 . 1 Leg 3 | . 3 . Wheel 1 | . 1 . Hover . | . . . Flight 1 | . 1 . Utility 6 | 2 2 2 Device 3 | 1 1 1 Storage 2 | 1 1 . Processor . | . . . Hackware . | . . . Protection 1 | . . 1 Artifact . | . . . Weapon 5 | 1 2 2 Energy Gun 1 | 1 . . Energy Cannon 4 | . 2 2 Ballistic Gun . | . . . Ballistic Cannon . | . . . Launcher . | . . . Special Weapon . | . . . Impact Weapon . | . . . Slashing Weapon . | . . . Piercing Weapon . | . . . Special Melee Weapon . | . . . Unidentified Prototypes . | . . . Parts Lost 6 | . 4 2 Power 1 | . 1 . Propulsion 2 | . 2 . Utility 1 | . . 1 Weapon 2 | . 1 1 Highest Loss Streak 4 | . 4 2 To Critical Strikes . | . . . Average Backups 7 | 6 8 7 Power . | . . 1 Propulsion 1 | 3 1 . Utility 3 | . 3 6 Weapon 1 | 1 2 . Tool/Special . | . . . Unused Backups 9 | . 5 4 Power . | . . . Propulsion 2 | . 2 . Utility 5 | . 1 4 Weapon 2 | . 2 . Tool/Special . | . . . Average Slot Usage (%) 90 | . 92 83 Engine 13 | . 13 14 Treads 12 | . 14 6 Leg 8 | . 10 . Wheel 3 | . . 14 Device 11 | . 14 5 Storage 14 | . 14 14 Protection 1 | . . 7 Energy Gun 2 | . 2 . Energy Cannon 20 | . 20 21 Peak Build Rating 13 | 7 11 13 Average Rating 9 | 4 9 11 On Entrance 5 | . 7 9 Avg Prop Armor Cover (%) 7 | . 10 4 Naked Turns . | . . . Heaviest Build 30 | 13 24 30 Greatest Support 40 | 40 40 20 Greatest Overweight (x) 9 | . 6 9 Average Overweight (x) . | . . 1 Largest Inventory Capacity 10 | 8 10 10 Average Capacity 8 | 7 8 10 Most Carried 10 | 8 10 10 Average Carried 8 | 6 8 8 Final Capacity 10 | 8 10 10 Final Carried 10 | 8 10 8 Class Distribution -------------------- 100% | Mutant Dominant Class ---------------- Mutant | -10/Materials Mutant | -10/Subcaves Resources | -11 -10 -10 ----------- Run | Yrd Mat Sub Matter Collected 420 | 260 110 50 Remotely . | . . . Salvage Created 627 | 128 384 115 Parts 43 | 7 28 8 Haulers Intercepted . | . . . Recyclers Shooed . | . . . Parts Field Recycled . | . . . Retrieved Matter . | . . . Parts Self-Destructed 4 | . . 4 Prevented . | . . . Parts Restored . | . . . Kills | -11 -10 -10 ------- Run | Yrd Mat Sub Combat Hostiles Destroyed 13 | . 11 2 Cannons 13 | . 11 2 Classes Destroyed 6 | 2 3 1 Tunneler 2 | 2 . . Recycler 1 | 1 . . Swarmer 3 | . 3 . Grunt 6 | . 6 . Sentry 1 | . . 1 Subdweller 3 | . 2 1 Best Kill Streak 4 | 2 4 1 Combat Bots Only 4 | . 4 1 Max Kills in Single Turn 1 | 1 1 1 Gunslinging . | . . . Exploded . | . . . Melee . | . . . Uniques/NPCs Destroyed . | . . . Combat | -11 -10 -10 -------- Run | Yrd Mat Sub Hostile Shots Fired 96 | . 73 23 Missed 19 | . 14 5 Hits 77 | . 59 18 Projectile 77 | . 59 18 Critical Strikes 1 | . 1 . Damage Taken 1177 | . 803 374 Core 254 | . 102 152 Absorbed by Shields . | . . . Core Remaining (%) 100 | 100 . . Volleys Fired 63 | 9 35 19 Largest 2 | 1 2 2 Hottest 136 | 50 136 136 Shots Fired 90 | 9 59 22 Gun 10 | 9 1 . Cannon 80 | . 58 22 Launcher . | . . . Special . | . . . Kinetic . | . . . Thermal 90 | 9 59 22 Explosive . | . . . Electromagnetic . | . . . Robot Hit Streak 14 | 8 12 14 Robot Miss Streak 4 | 1 4 2 Penetration Max . | . . . Secondary Targets . | . . . Shots Hit Robots 59 | 8 38 13 Core Hits 21 | 4 14 3 Critical Kills . | . . . Critical Parts Destroyed . | . . . Critical Strikes . | . . . Melee Attacks . | . . . Impact . | . . . Slashing . | . . . Piercing . | . . . Sneak Attacks . | . . . Combat Hostiles . | . . . Follow-up Attacks . | . . . Damage Inflicted 1116 | 99 771 246 Guns 111 | 99 12 . Cannons 1005 | . 759 246 Explosions . | . . . Melee . | . . . Ramming . | . . . Kinetic . | . . . Thermal 1116 | 99 771 246 Explosive . | . . . Electromagnetic . | . . . Impact . | . . . Slashing . | . . . Piercing . | . . . Highest Corruption . | . . . Average Corruption . | . . . Corruption Purged . | . . . Corruption Blocked . | . . . Overload Shots . | . . . Overflow Damage 1 | . 1 . Projectiles 1 | . 1 . Explosions . | . . . Melee . | . . . Knockbacks . | . . . Impact . | . . . Kinetic . | . . . Secondary . | . . . Self-Inflicted Damage . | . . . Shots . | . . . Rammed . | . . . Targets Rammed . | . . . Kicked . | . . . Crushed . | . . . Highest Temperature 460 | 40 460 24 Average Temperature 146 | 16 172 9 Received Heat Transfer 312 | . 240 72 Effects 9 | . 9 . Shutdowns 1 | . 1 . Interference 2 | . 2 . Short Circuit 2 | . 2 . Damage (major) 4 | . 4 . Siege Activations . | . . . Martial Activations . | . . . Shielding Activations . | . . . Robots Disrupted . | . . . Combat Hostiles . | . . . Robots Corrupted . | . . . Combat Hostiles . | . . . Parts Fried . | . . . Impact Corruptions . | . . . Robots Melted . | . . . Combat Hostiles . | . . . Parts Melted 3 | 1 1 1 Heat Transferred 2146 | 296 1406 444 Parts Sabotaged . | . . . Parts Stolen . | . . . Parts Stripped . | . . . Power Chain Reactions . | . . . Alert | -11 -10 -10 ------- Run | Yrd Mat Sub Maximum Alert Level . | . . . Low Security (%) 100 | 100 100 . Level 1 . | . . . Level 2 . | . . . Level 3 . | . . . Level 4 . | . . . Level 5 . | . . . High Security . | . . . Max Security . | . . . Peak Influence 99 | 10 99 . Initial . | . . . Average 31 | . 36 . Influence Increases 353 | 15 318 20 Destroy 0b10 Robot/C 200 | . 180 20 Destroy 0b10 Robot/NC 15 | 15 . . Destroy Leader 50 | . 50 . Successful Hack 27 | . 27 . Disable Machine 15 | . 15 . Destroy Structure 1 | . 1 . Lose Combat Pursuer 45 | . 45 . Influence Decreases 353 | 15 318 20 Time Decay 329 | 15 294 20 Lost Part 24 | . 24 . Squads Dispatched 3 | . 3 . Investigation 1 | . 1 . Extermination . | . . . Reinforcement 2 | . 2 . Assault . | . . . Garrison . | . . . Intercept . | . . . Searches Triggered . | . . . Construction Impeded . | . . . Haulers Reinforced . | . . . Active Scanning Responses . | . . . Cargo Convoy Interrupts . | . . . Stealth | -11 -10 -10 --------- Run | Yrd Mat Sub Distress Signals . | . . . Communications Jammed . | . . . Distress Signals . | . . . Times Spotted 24 | . 21 3 Peak Tracking Total 6 | . 6 1 Tactical Retreats 3 | . 3 . Traps | -11 -10 -10 ------- Run | Yrd Mat Sub Traps Triggered 1 | . 1 . Indirectly . | . . . Trap Hack Attempts . | . . . Triggered . | . . . Disarmed . | . . . Reprogrammed . | . . . Reused . | . . . Traps Extracted . | . . . Installed . | . . . Triggered . | . . . Machines | -11 -10 -10 ---------- Run | Yrd Mat Sub Machines Disabled 1 | . 1 . Max in Single Turn 1 | . 1 . Machines Repaired . | . . . Machines Dismantled . | . . . Machines Sabotaged . | . . . Overloaded Fab Kills . | . . . Hacking | -11 -10 -10 --------- Run | Yrd Mat Sub Machines Accessed 8 | . 8 . Terminals 6 | . 6 . Fabricators . | . . . Repair Stations . | . . . Recycling Units 2 | . 2 . Scanalyzers . | . . . Garrison Access . | . . . Total Hacks 17 | . 17 . Successful 10 | . 10 . Failed 7 | . 7 . Catastrophic . | . . . Database Lockouts . | . . . Manual 13 | . 13 . Terminals 12 | . 12 . Fabricators . | . . . Repair Stations . | . . . Recycling Units 5 | . 5 . Scanalyzers . | . . . Garrison Access . | . . . Terminal Hacks 2 | . 2 . Registered Components 1 | . 1 . Zone Layout 1 | . 1 . Fabricator Hacks . | . . . Repair Station Hacks . | . . . Recycling Unit Hacks 1 | . 1 . Report Inventory 1 | . 1 . Scanalyzer . | . . . Garrison Access Hacks . | . . . Unauthorized Hacks 7 | . 7 . Terminals 5 | . 5 . Botnet 5 | . 5 . Fabricators . | . . . Repair Stations . | . . . Recycling Units 2 | . 2 . Mask 2 | . 2 . Scanalyzers . | . . . Garrison Access . | . . . Data Cores Recovered . | . . . Used . | . . . Hacking Detections 6 | . 6 . Full Trace Events . | . . . Feedback Events . | . . . Feedback Blocked . | . . . Robot Schematics Acquired . | . . . Robots Built . | . . . Authchips . | . . . Time . | . . . Total Robot Build Rating . | . . . Part Schematics Acquired . | . . . Parts Built . | . . . Authchips . | . . . Time . | . . . Total Part Build Rating . | . . . Part Studies Acquired . | . . . Parts Repaired . | . . . Time . | . . . Parts Recycled . | . . . Recycled Matter . | . . . Retrieved Matter . | . . . Retrieved Components . | . . . Parts Scanalyzed . | . . . Part Schematics Acquired . | . . . Parts Damaged . | . . . Bothacking | -11 -10 -10 ------------ Run | Yrd Mat Sub Used RIF Installer . | . . . Robots Hacked . | . . . Non-combat . | . . . Combat . | . . . Robot Hacks Applied . | . . . Relay Couplers Released . | . . . Fabnet Peak Effective % . | . . . Robots Rewired . | . . . Allies Hacked . | . . . Hacks Repelled . | . . . Allies | -11 -10 -10 -------- Run | Yrd Mat Sub Total Allies . | . . . Largest Group . | . . . Highest-Rated Group . | . . . Highest-Rated Ally . | . . . Total Orders . | . . . Ally Attacks . | . . . Total Damage . | . . . Kills . | . . . Allies Corrupted . | . . . Allies Melted . | . . . Intel | -11 -10 -10 ------- Run | Yrd Mat Sub Active Infowar (turns) 1125 | 46 967 112 Optics 55 | . . 55 Structural 440 | . 383 57 Seismic 630 | 46 584 . Robot Analysis Total . | . . . Derelict Logs Recovered . | . . . Drone Launches . | . . . Drone Recoveries . | . . . Exploration | -11 -10 -10 ------------- Run | Yrd Mat Sub Turns Passed 1484 | 179 998 307 Spaces Moved 716 | 86 511 119 Core 33 | 1 13 19 Treads 391 | 85 246 60 Legs 210 | . 210 . Wheels 82 | . 42 40 Hover . | . . . Flight . | . . . Fastest Speed 50 | 50 110 110 Average Speed 169 | 158 160 215 Slowest Speed 500 | 160 350 500 Overloaded Moves . | . . . Propulsion Burnouts . | . . . Robots Hopped . | . . . Potential Cave-ins . | . . . Cave-ins Triggered . | . . . Exploration Rate (%) 27 | 4 64 15 Regions Visited 2 Branch Regions 1 Pre-discovered Areas . | . . . Known Exits Taken . | . . . Unknown Exits Taken 2 | 1 1 . Scrap Searched . | . . . Spaces Dug . | . . . Terrain Destroyed . | . . . Melee . | . . . Projectile . | . . . AOE . | . . . Terrain Rammed . | . . . Walls Destroyed . | . . . Machines Disabled . | . . . Actions | -11 -10 -10 --------- Run | Yrd Mat Sub Total 895 | 117 631 147 Wait 62 | 8 53 1 Move 714 | 85 510 119 Hop . | . . . Pick Up 18 | 9 9 . Fast Attach 9 | 5 2 2 Attach 5 | 1 2 2 Detach 1 | . 1 . Swap 10 | . 9 1 Drop 10 | . 10 . Fire 63 | 9 35 19 Melee . | . . . Ram . | . . . Kick . | . . . Crush . | . . . Escape Stasis . | . . . Rewire 3 | . . 3 Trap . | . . . Miscellaneous . | . . . Route ------- -11/Scrapyard -10/Materials (discovered 3 exits: [*Mat] / [*Min] / [*Sub]) -10/Subcaves History --------- Turn | Location | Event 25 | -11/Scrapyard | Discovered new exit (range 16) 180 | -11/Scrapyard | Entered Materials 314 | -10/Materials | Build established: Mutant 355 | -10/Materials | Discovered new exit (range 13) 713 | -10/Materials | Discovered new exit (range 11) 940 | -10/Materials | Discovered new exit (range 11) 980 | -10/Materials | Derelicts attacked the area 1101 | -10/Materials | Lost 4 parts (1p2n1w) 1178 | -10/Materials | Entered Subcaves 1232 | -10/Subcaves | Core integrity fell below 50% 1321 | -10/Subcaves | Core integrity fell below 20% 1437 | -10/Subcaves | Disturbed a concealed Subdweller 1485 | -10/Subcaves | Destroyed by HX-579(R) with Subdweller Machine Gun Last Messages --------------- 01208_ BT-KUC(R) is broken beyond repair. 01213_ Attempting to rewire QJ-36V(R). 01213_ QJ-36V(R) is broken beyond repair. 01224_ Sub. Monowheel shoots sparks and powers down. 01235_ Structural Scanner destroyed. 01235_ Particle Cannon destroyed. 01257_ Sub. Beam Cannon melted. 01257_ LA-94S(R) destroyed. 01262_ Acquired 10 matter. 01269_ Acquired Sub. Optics. 01326_ Y-45 Defender destroyed. 01332_ Subatomizers dissect the Heat Sink. 01334_ Acquired Lgt. Treads. 01337_ Hvy. Assault Rifle fries itself beyond repair. 01338_ Heat Sink fries itself beyond repair. 01338_ Acquired 40 matter. 01343_ Beam Rifle fries itself beyond repair. 01448_ HX-579(R): "SUBSUB!" Map ----- +----------------------------------------------------+ | ?????????????????????????????????????????????????? | | ?????????????????????????????????????????????????? | | ?????????????????????????????????????????????????? | | ?????????????????????????????????????????????????? | | ?????????????????????????????????????????????????? | | ?????????????????????????????????????????????????? | | ?????????????????????????????????????????????????? | | ?????????????????????????????????????????????????? | | ???????# ????????????????????????????????????????? | | ???##?## ??????##???????????????????????????????? | | ???# ## ?????#"???????????????????????????????? | | ???# ??????&##?????????????????????????????? | | ???# ?????? ##????????????????????????????? | | ????# ??????# "###??????????????????????????? | | ?????# ?????## ## ###????????????????????????? | | ?????# #?????#" ##???????????????????????? | | ????## ##?#### #???????????????????????? | | ???## ### # #???????????????????????? | | #### #????????????????????????? | | # # ##????????????????????????? | | # ##?????????????????????????? | | ##### R#####??????????????????????? | | #### # #???# #??????????????????????? | | ???## #???# ##?????????????????????? | | ???# ##???## ## ##????????????????????? | | ???# ##?????# ### @ #????????????????????? | | ??## #?????# #?# #???????????????????? | | ?## ##?##??## ####???????????????????? | | ?# ##? #??? ##??????????????????????? | | ## ## ##?? ###???????????????????????? | | ## ### #??????????????????????????? | | # ### #??????????????????????????? | | ## ##??????????????????????????? | | ??????????????????????????? | | ## ## ??????????????????????????? | | ### ###?####### ??????????????????????????? | | #? ##??????????#???????????????????????????? | | ## ##???????????????????????????????????????? | | ## ##????????????????????????????????????????? | | ######?????????????????????????????????????????? | | ###??????????????????????????????????????????????? | | ?????????????????????????????????????????????????? | | ?????????????????????????????????????????????????? | | ?????????????????????????????????????????????????? | | ?????????????????????????????????????????????????? | | ?????????????????????????????????????????????????? | | ?????????????????????????????????????????????????? | | ?????????????????????????????????????????????????? | | ?????????????????????????????????????????????????? | | ?????????????????????????????????????????????????? | +----------------------------------------------------+ Best States ------------- Heat Dissipation 25 Energy Generation 15 Energy Capacity 250 Matter Stores 300 Matter Capacity 300 Sight Range 21 Terrain Scan Density 10 Armor Coverage 225 Evasion (%) 55 Recoil Reduction 2 Item Schematics ----------------- None Robot Schematics ------------------ None Fabricated ------------ Nothing Repaired ---------- Nothing Studied --------- None Alien Tech Used ----------------- None Achievements -------------- Myspace Challenges ------------ None Game ------ Seed CouplerBlastMindspike Manual? 0 Play Time 00:13:14 Cumulative 26.8 hours Start 2026.03.03 @ 17:12:35 End 2026.03.03 @ 17:24:32 Sessions 1 Manual Loads 0 Difficulty Rogue Special Mode None Game No. 49 Rogue 49 Adventurer 0 Explorer 0 Win Type - Total 0 Types 0/0/0/0/0/0/0/0/0/0 Lore% 11 Gallery% 27 Achievement% 17 Wizard Run 0 Options --------- Layout 2 ASCII 0 Keyboard 1 Movement Numpad Keybinds 0 Fullscreen 1 Font 24/Smallcaps Map View 50x44 Zoom Use 0% Tactical HUD 1 Map Filters NONE Filters NONE Steam 1 RUN: 3b5a3ffa-8b06-4057-abc0-eae2d49542e2